[Event "*** Titled Tuesday Blitz"]
[Site "Chess.com"]
[Date "2018.12.04"]
[Round "4"]
[White "Alopekos"]
[Black "1e41-0"]
[Result "1-0"]
[WhiteElo "2497"]
[BlackElo "2498"]
[TimeControl "180+2"]
[EndTime "13:51:19 PST"]
[Termination "Alopekos won by checkmate"]

1. e4 {[%clk 0:03:01.9]} 1... e6 {[%clk 0:02:58.8]} 2. d4 {[%clk 0:03:02.5]}
2... d5 {[%clk 0:02:58.3]} 3. Nc3 {[%clk 0:03:03.6]} 3... Bb4 {[%clk 0:02:58.2]}
4. e5 {[%clk 0:03:04.6]} 4... c5 {[%clk 0:02:59.1]} 5. a3 {[%clk 0:03:06.2]}
5... Bxc3+ {[%clk 0:03:00.5]} 6. bxc3 {[%clk 0:03:08.1]} 6... Qa5 {[%clk
0:03:01.6]} 7. Bd2 {[%clk 0:03:08.8]} 7... Qa4 {[%clk 0:03:02.3]} 8. Qb1 {[%clk
0:03:09.9]} 8... c4 {[%clk 0:03:00.4]} 9. h4 {[%clk 0:03:11.1]} 9... Ne7 {[%clk
0:02:54.9]} 10. h5 {[%clk 0:03:12.1]} 10... h6 {[%clk 0:02:51.9]} 11. f4 {[%clk
0:03:00.5]} 11... Nbc6 {[%clk 0:02:52.8]} 12. Nf3 {[%clk 0:03:00.8]} 12... Bd7
{[%clk 0:02:48]} 13. g4 {[%clk 0:02:59.6]} 13... O-O-O {[%clk 0:02:47.4]} 14.
Bh3 {[%clk 0:02:59.9]} 14... f6 {[%clk 0:02:43.5]} 15. O-O {[%clk 0:02:58.6]}
15... Rdf8 {[%clk 0:02:40.1]} 16. Rf2 {[%clk 0:02:09.5]} 16... f5 {[%clk
0:02:21.2]} 17. Nh4 {[%clk 0:02:09.7]} 17... fxg4 {[%clk 0:02:03.4]} 18. Bxg4
{[%clk 0:02:11.6]} 18... Rhg8 {[%clk 0:01:57.8]} 19. Kh2 {[%clk 0:01:48.8]}
19... g5 {[%clk 0:01:47.9]} 20. Ng2 {[%clk 0:01:40.9]} 20... gxf4 {[%clk
0:01:47.8]} 21. Qd1 {[%clk 0:01:40.8]} 21... f3 {[%clk 0:01:10.6]} 22. Rxf3
{[%clk 0:01:35.4]} 22... Rxf3 {[%clk 0:01:10.7]} 23. Bxf3 {[%clk 0:01:34.9]}
23... Nf5 {[%clk 0:01:11.4]} 24. Ra2 {[%clk 0:01:23.6]} 24... Qa5 {[%clk
0:01:05]} 25. Bg4 {[%clk 0:00:56.9]} 25... Nce7 {[%clk 0:01:04.2]} 26. Ra1
{[%clk 0:00:28.2]} 26... Qd8 {[%clk 0:00:47.7]} 27. Qf3 {[%clk 0:00:27.6]} 27...
Qf8 {[%clk 0:00:38.3]} 28. Rf1 {[%clk 0:00:25.6]} 28... Qg7 {[%clk 0:00:38.3]}
29. Bh3 {[%clk 0:00:23.4]} 29... Kb8 {[%clk 0:00:26.2]} 30. Qf2 {[%clk
0:00:21.1]} 30... Be8 {[%clk 0:00:26.3]} 31. Nf4 {[%clk 0:00:21.9]} 31... Bf7
{[%clk 0:00:25.1]} 32. Rg1 {[%clk 0:00:22.4]} 32... Qf8 {[%clk 0:00:22]} 33.
Rxg8 {[%clk 0:00:21.7]} 33... Qxg8 {[%clk 0:00:23.9]} 34. Bxf5 {[%clk
0:00:16.2]} 34... Nxf5 {[%clk 0:00:24.6]} 35. Nxd5 {[%clk 0:00:17.2]} 35... Qg4
{[%clk 0:00:20.3]} 36. Nf6 {[%clk 0:00:14.2]} 36... Qd1 {[%clk 0:00:21.1]} 37.
Bf4 {[%clk 0:00:12.7]} 37... Bxh5 {[%clk 0:00:20.7]} 38. d5 {[%clk 0:00:12.9]}
38... Bf3 {[%clk 0:00:21.4]} 39. Qg1 {[%clk 0:00:06.5]} 39... Qe2+ {[%clk
0:00:18.5]} 40. Kh3 {[%clk 0:00:07.5]} 40... Bxd5 {[%clk 0:00:13.6]} 41. Qg8+
{[%clk 0:00:03.7]} 41... Kc7 {[%clk 0:00:15]} 42. Nxd5+ {[%clk 0:00:05]} 42...
exd5 {[%clk 0:00:16.4]} 43. Qf7+ {[%clk 0:00:06]} 43... Kb6 {[%clk 0:00:16.2]}
44. Qxf5 {[%clk 0:00:06.8]} 44... Qf3+ {[%clk 0:00:17]} 45. Kh4 {[%clk
0:00:05.4]} 45... Qh1+ {[%clk 0:00:16.1]} 46. Qh3 {[%clk 0:00:05.7]} 46... Qe4
{[%clk 0:00:16.3]} 47. Qe3+ {[%clk 0:00:06.4]} 47... Qxe3 {[%clk 0:00:15.8]} 48.
Bxe3+ {[%clk 0:00:08.3]} 48... Kc6 {[%clk 0:00:17.5]} 49. Bxa7 {[%clk
0:00:07.4]} 49... Kd7 {[%clk 0:00:18]} 50. Kh5 {[%clk 0:00:07.6]} 50... Ke6
{[%clk 0:00:19.9]} 51. Bd4 {[%clk 0:00:07.5]} 51... b5 {[%clk 0:00:21.8]} 52.
Kxh6 {[%clk 0:00:08.6]} 52... Kf5 {[%clk 0:00:23.4]} 53. Kg7 {[%clk 0:00:09.5]}
53... Ke6 {[%clk 0:00:25.3]} 54. Kg6 {[%clk 0:00:10.6]} 54... Kd7 {[%clk
0:00:25.6]} 55. Kf7 {[%clk 0:00:11.5]} 55... Kc6 {[%clk 0:00:26.3]} 56. e6
{[%clk 0:00:12.8]} 56... Kb7 {[%clk 0:00:28.2]} 57. e7 {[%clk 0:00:14.1]} 57...
Ka6 {[%clk 0:00:30.1]} 58. e8=Q {[%clk 0:00:14.3]} 58... Ka5 {[%clk 0:00:32]}
59. Qa8# {[%clk 0:00:14.7]} 1-0

[Event "*** Titled Tuesday Blitz"]
[Site "Chess.com"]
[Date "2018.12.04"]
[Round "4"]
[White "Mykola-Bortnyk"]
[Black "AndrBaryshpolets"]
[Result "1/2-1/2"]
[WhiteElo "2836"]
[BlackElo "2574"]
[TimeControl "180+2"]
[EndTime "13:51:20 PST"]
[Termination "Game drawn by agreement"]

1. e4 {[%clk 0:03:01.9]} 1... e6 {[%clk 0:03:00.8]} 2. d4 {[%clk 0:03:02.7]}
2... d5 {[%clk 0:03:02]} 3. Nc3 {[%clk 0:03:04.1]} 3... Nf6 {[%clk 0:03:02.6]}
4. e5 {[%clk 0:03:05.3]} 4... Nfd7 {[%clk 0:03:03.6]} 5. Nf3 {[%clk 0:03:06.9]}
5... c5 {[%clk 0:03:03.7]} 6. dxc5 {[%clk 0:03:08.6]} 6... Nc6 {[%clk
0:03:02.4]} 7. Bf4 {[%clk 0:03:09.6]} 7... Bxc5 {[%clk 0:02:58.2]} 8. Bd3 {[%clk
0:03:10.4]} 8... f6 {[%clk 0:02:49.5]} 9. exf6 {[%clk 0:03:11.2]} 9... Qxf6
{[%clk 0:02:50.5]} 10. Bg5 {[%clk 0:03:12.3]} 10... Qf7 {[%clk 0:02:49]} 11. Qe2
{[%clk 0:03:07.8]} 11... O-O {[%clk 0:02:29.9]} 12. O-O-O {[%clk 0:03:07.1]}
12... Bd6 {[%clk 0:01:56.4]} 13. Kb1 {[%clk 0:03:04.5]} 13... Nde5 {[%clk
0:01:47.9]} 14. Nxe5 {[%clk 0:02:19.7]} 14... Nxe5 {[%clk 0:01:49.8]} 15. Bh4
{[%clk 0:01:45.2]} 15... Nxd3 {[%clk 0:01:47.1]} 16. Rxd3 {[%clk 0:01:44.4]}
16... Bd7 {[%clk 0:01:48.7]} 17. Rhd1 {[%clk 0:01:35.2]} 17... Bc6 {[%clk
0:01:35.4]} 18. Ne4 {[%clk 0:01:26.7]} 18... Bf4 {[%clk 0:00:51.3]} 19. Nc5
{[%clk 0:01:00.7]} 19... Bb5 {[%clk 0:00:46.1]} 20. Qxe6 {[%clk 0:00:32.9]}
20... Bxd3 {[%clk 0:00:44.5]} 21. Qxf7+ {[%clk 0:00:26.8]} 21... Rxf7 {[%clk
0:00:33.4]} 22. Rxd3 {[%clk 0:00:28.1]} 22... Re8 {[%clk 0:00:32.7]} 23. a4
{[%clk 0:00:28.8]} 23... b6 {[%clk 0:00:27.1]} 24. Nb3 {[%clk 0:00:27]} 24...
Bxh2 {[%clk 0:00:22.1]} 25. Rxd5 {[%clk 0:00:19.6]} 25... h6 {[%clk 0:00:21.3]}
26. f3 {[%clk 0:00:14.3]} 26... Re2 {[%clk 0:00:17.5]} 27. Rd2 {[%clk
0:00:12.6]} 27... Rxd2 {[%clk 0:00:17.5]} 28. Nxd2 {[%clk 0:00:14.5]} 28... Rd7
{[%clk 0:00:14.6]} 29. Ne4 {[%clk 0:00:15.9]} 29... Rd1+ {[%clk 0:00:15.2]} 30.
Ka2 {[%clk 0:00:17.5]} 30... Rg1 {[%clk 0:00:15]} 31. g4 {[%clk 0:00:10.2]}
31... Be5 {[%clk 0:00:13.4]} 32. Bf2 {[%clk 0:00:10.2]} 32... Rd1 {[%clk
0:00:13.3]} 33. a5 {[%clk 0:00:10.4]} 33... bxa5 {[%clk 0:00:09.9]} 34. Bxa7
{[%clk 0:00:11.2]} 34... a4 {[%clk 0:00:10]} 35. c4 {[%clk 0:00:08.1]} 35... Kf7
{[%clk 0:00:10.1]} 36. c5 {[%clk 0:00:07.3]} 36... Ke6 {[%clk 0:00:09.5]} 37.
Bb6 {[%clk 0:00:05.6]} 37... Kd5 {[%clk 0:00:08.3]} 38. Ba7 {[%clk 0:00:04.8]}
38... Kc6 {[%clk 0:00:08.6]} 39. Bb6 {[%clk 0:00:05.9]} 39... Kb5 {[%clk
0:00:08.8]} 40. f4 {[%clk 0:00:06.6]} 40... Bd4 {[%clk 0:00:06.1]} 41. Nd6+
{[%clk 0:00:06.8]} 41... Kc6 {[%clk 0:00:06.6]} 42. Nf5 {[%clk 0:00:07.4]} 42...
Bxc5 {[%clk 0:00:03.3]} 43. Bxc5 {[%clk 0:00:07.9]} 43... Kxc5 {[%clk
0:00:05.2]} 44. Nxg7 {[%clk 0:00:09]} 44... Rg1 {[%clk 0:00:06.3]} 45. g5 {[%clk
0:00:09.6]} 45... hxg5 {[%clk 0:00:06.7]} 46. fxg5 {[%clk 0:00:11.5]} 46... Kd5
{[%clk 0:00:07.5]} 47. Nf5 {[%clk 0:00:11.5]} 47... Rxg5 {[%clk 0:00:08.4]} 48.
Ne3+ {[%clk 0:00:13.1]} 48... Kc5 {[%clk 0:00:09.8]} 49. Nc2 {[%clk 0:00:15]}
49... Rg3 {[%clk 0:00:10.5]} 50. Na3 {[%clk 0:00:16.9]} 50... Kb4 {[%clk
0:00:11.5]} 51. Nb1 {[%clk 0:00:18.8]} 51... Rg2 {[%clk 0:00:12.1]} 52. Na3
{[%clk 0:00:20.7]} 52... Rd2 {[%clk 0:00:12.8]} 53. Nb1 {[%clk 0:00:22.2]} 53...
Rc2 {[%clk 0:00:14.2]} 54. Na3 {[%clk 0:00:23.1]} 54... Re2 {[%clk 0:00:15.7]}
55. Nb1 {[%clk 0:00:24.7]} 55... Kc4 {[%clk 0:00:16.6]} 56. Nc3 {[%clk
0:00:25.4]} 1/2-1/2

[Event "*** Titled Tuesday Blitz"]
[Site "Chess.com"]
[Date "2018.12.04"]
[Round "4"]
[White "IngOscarArdila"]
[Black "Vadim_Biliy"]
[Result "1-0"]
[WhiteElo "2230"]
[BlackElo "2142"]
[TimeControl "180+2"]
[EndTime "13:51:20 PST"]
[Termination "IngOscarArdila won on time"]

1. e4 {[%clk 0:03:01.8]} 1... e5 {[%clk 0:02:59.2]} 2. Nf3 {[%clk 0:02:58.8]}
2... Nc6 {[%clk 0:02:59.9]} 3. Bb5 {[%clk 0:02:55.3]} 3... Bd6 {[%clk
0:03:00.5]} 4. O-O {[%clk 0:02:55.5]} 4... Qf6 {[%clk 0:02:59.6]} 5. c3 {[%clk
0:02:56.6]} 5... h6 {[%clk 0:02:58.7]} 6. d4 {[%clk 0:02:56.8]} 6... Nge7 {[%clk
0:02:57.1]} 7. Re1 {[%clk 0:02:54.1]} 7... a6 {[%clk 0:02:56.9]} 8. Ba4 {[%clk
0:02:54.4]} 8... O-O {[%clk 0:02:55.9]} 9. h3 {[%clk 0:02:51.9]} 9... Ng6 {[%clk
0:02:55.5]} 10. Be3 {[%clk 0:02:41.2]} 10... b5 {[%clk 0:02:44.6]} 11. Bc2
{[%clk 0:02:38.2]} 11... Bb7 {[%clk 0:02:44.7]} 12. a4 {[%clk 0:02:32.6]} 12...
Rfe8 {[%clk 0:02:40.8]} 13. d5 {[%clk 0:02:33.3]} 13... Nce7 {[%clk 0:02:33]}
14. Nbd2 {[%clk 0:02:33.2]} 14... Nf4 {[%clk 0:02:25.4]} 15. Nf1 {[%clk
0:02:22.1]} 15... g5 {[%clk 0:02:23.3]} 16. Ng3 {[%clk 0:02:19.3]} 16... Neg6
{[%clk 0:02:22.6]} 17. Nf5 {[%clk 0:02:18.4]} 17... Bf8 {[%clk 0:02:22.8]} 18.
Bd3 {[%clk 0:02:14.1]} 18... c6 {[%clk 0:02:19.5]} 19. dxc6 {[%clk 0:02:10.8]}
19... dxc6 {[%clk 0:02:17.6]} 20. Qc2 {[%clk 0:02:10.8]} 20... Nxd3 {[%clk
0:02:01.5]} 21. Qxd3 {[%clk 0:02:11.4]} 21... Rad8 {[%clk 0:02:01.4]} 22. Qc2
{[%clk 0:02:10.3]} 22... c5 {[%clk 0:01:54.5]} 23. axb5 {[%clk 0:02:08.6]} 23...
axb5 {[%clk 0:01:54.8]} 24. Ra7 {[%clk 0:02:09]} 24... Qc6 {[%clk 0:01:48.5]}
25. Bc1 {[%clk 0:01:59.3]} 25... c4 {[%clk 0:01:43.5]} 26. Ra1 {[%clk
0:01:57.2]} 26... Rd3 {[%clk 0:01:22.5]} 27. Nh2 {[%clk 0:01:57.1]} 27... Ne7
{[%clk 0:01:13.3]} 28. Ng3 {[%clk 0:01:48.4]} 28... f5 {[%clk 0:01:06.8]} 29.
Qe2 {[%clk 0:01:42.9]} 29... f4 {[%clk 0:01:05.9]} 30. Nh5 {[%clk 0:01:35.9]}
30... Ng6 {[%clk 0:00:58.3]} 31. Qg4 {[%clk 0:01:31.5]} 31... Bc8 {[%clk
0:00:53.6]} 32. Qe2 {[%clk 0:01:31.3]} 32... Red8 {[%clk 0:00:52.7]} 33. Ng4
{[%clk 0:01:30.6]} 33... R3d6 {[%clk 0:00:24.2]} 34. Ra7 {[%clk 0:01:27.3]}
34... Qb6 {[%clk 0:00:21.4]} 35. Ra1 {[%clk 0:01:18.5]} 35... Qc5 {[%clk
0:00:21.4]} 36. Ngf6+ {[%clk 0:01:07.7]} 36... Kh8 {[%clk 0:00:19.1]} 37. Nd5
{[%clk 0:01:05.8]} 37... Nh4 {[%clk 0:00:15.9]} 38. Nhf6 {[%clk 0:01:01.3]}
38... Bg7 {[%clk 0:00:14.1]} 39. Ng4 {[%clk 0:00:58.6]} 39... f3 {[%clk
0:00:12.2]} 40. gxf3 {[%clk 0:00:56.7]} 40... Rxd5 {[%clk 0:00:13.2]} 41. exd5
{[%clk 0:00:57.2]} 41... Rxd5 {[%clk 0:00:11.3]} 42. Be3 {[%clk 0:00:57.8]}
42... Qc6 {[%clk 0:00:11.2]} 43. Ra7 {[%clk 0:00:57.3]} 43... Rd3 {[%clk
0:00:09.4]} 44. Nh2 {[%clk 0:00:56.5]} 44... Bb7 {[%clk 0:00:08.7]} 45. Rea1
{[%clk 0:00:56.4]} 45... e4 {[%clk 0:00:07.5]} 46. f4 {[%clk 0:00:50.8]} 46...
Nf3+ {[%clk 0:00:05.7]} 47. Nxf3 {[%clk 0:00:46.8]} 47... exf3 {[%clk
0:00:06.6]} 48. Qf1 {[%clk 0:00:45.7]} 48... gxf4 {[%clk 0:00:04.2]} 49. Bxf4
{[%clk 0:00:45.1]} 49... Bc8 {[%clk 0:00:04.9]} 50. Ra8 {[%clk 0:00:41.8]} 50...
Kh7 {[%clk 0:00:04.2]} 51. Bg3 {[%clk 0:00:42.9]} 51... Rd2 {[%clk 0:00:02.4]}
52. R8a7 {[%clk 0:00:42.8]} 1-0

[Event "*** Titled Tuesday Blitz"]
[Site "Chess.com"]
[Date "2018.12.04"]
[Round "4"]
[White "Frolik67"]
[Black "theblitzchamp"]
[Result "0-1"]
[WhiteElo "2651"]
[BlackElo "2712"]
[TimeControl "180+2"]
[EndTime "13:51:21 PST"]
[Termination "theblitzchamp won by resignation"]

1. e4 {[%clk 0:03:01.9]} 1... e5 {[%clk 0:03:00.3]} 2. Nf3 {[%clk 0:03:00.5]}
2... Nc6 {[%clk 0:03:01.6]} 3. Bc4 {[%clk 0:02:59.6]} 3... Nf6 {[%clk
0:03:02.4]} 4. d3 {[%clk 0:03:00.1]} 4... Be7 {[%clk 0:03:03]} 5. h3 {[%clk
0:03:00.9]} 5... O-O {[%clk 0:03:03.6]} 6. c3 {[%clk 0:03:02.1]} 6... d5 {[%clk
0:03:04.6]} 7. exd5 {[%clk 0:03:03.3]} 7... Nxd5 {[%clk 0:03:05.8]} 8. O-O
{[%clk 0:03:04.9]} 8... Bf6 {[%clk 0:03:03.1]} 9. Nbd2 {[%clk 0:03:04.8]} 9...
Re8 {[%clk 0:02:49.9]} 10. Ne4 {[%clk 0:03:04.5]} 10... Be6 {[%clk 0:02:49.2]}
11. Re1 {[%clk 0:03:01]} 11... a6 {[%clk 0:02:48.5]} 12. a4 {[%clk 0:03:00.7]}
12... Qe7 {[%clk 0:02:34.9]} 13. b3 {[%clk 0:02:26.1]} 13... Rab8 {[%clk
0:02:29]} 14. Ba3 {[%clk 0:02:26.3]} 14... Qd8 {[%clk 0:02:29.9]} 15. Bxd5
{[%clk 0:02:12.6]} 15... Bxd5 {[%clk 0:02:29.9]} 16. c4 {[%clk 0:02:13.2]} 16...
Be6 {[%clk 0:02:27.4]} 17. Bb2 {[%clk 0:02:03.8]} 17... Bf5 {[%clk 0:02:17.5]}
18. Re3 {[%clk 0:01:50.6]} 18... h6 {[%clk 0:01:53.7]} 19. Qe1 {[%clk
0:01:34.6]} 19... Bxe4 {[%clk 0:01:44.5]} 20. dxe4 {[%clk 0:01:31.7]} 20... Qe7
{[%clk 0:01:38.9]} 21. Rd1 {[%clk 0:01:23.7]} 21... Red8 {[%clk 0:01:40.1]} 22.
Rd5 {[%clk 0:01:24]} 22... Qb4 {[%clk 0:00:51.9]} 23. Qa1 {[%clk 0:01:12.6]}
23... Nd4 {[%clk 0:00:42.8]} 24. Nxd4 {[%clk 0:01:04.8]} 24... exd4 {[%clk
0:00:41.9]} 25. Bxd4 {[%clk 0:01:06.3]} 25... Bxd4 {[%clk 0:00:34.7]} 26. Qxd4
{[%clk 0:01:08.2]} 26... Rxd5 {[%clk 0:00:34]} 27. exd5 {[%clk 0:01:10.1]} 27...
Rd8 {[%clk 0:00:34.1]} 28. Rg3 {[%clk 0:01:01.7]} 28... Qf8 {[%clk 0:00:33.7]}
29. Qe5 {[%clk 0:01:00.7]} 29... c6 {[%clk 0:00:31.9]} 30. Rd3 {[%clk
0:00:59.9]} 30... cxd5 {[%clk 0:00:30.4]} 31. cxd5 {[%clk 0:00:59.5]} 31... Rd6
{[%clk 0:00:30.8]} 32. Kf1 {[%clk 0:00:52]} 32... Qd8 {[%clk 0:00:28.4]} 33. Ke2
{[%clk 0:00:50]} 33... g6 {[%clk 0:00:29.2]} 34. Kf3 {[%clk 0:00:45.3]} 34...
Rf6+ {[%clk 0:00:28]} 35. Ke3 {[%clk 0:00:44]} 35... Rd6 {[%clk 0:00:27.2]} 36.
g3 {[%clk 0:00:42.1]} 36... Qb6+ {[%clk 0:00:28]} 37. Qd4 {[%clk 0:00:37.3]}
37... Qc7 {[%clk 0:00:28.1]} 38. Ke4 {[%clk 0:00:35.9]} 38... Qe7+ {[%clk
0:00:25]} 39. Qe5 {[%clk 0:00:34.2]} 39... Qd8 {[%clk 0:00:21.8]} 40. f4 {[%clk
0:00:28.2]} 40... Qb6 {[%clk 0:00:22.6]} 41. Qd4 {[%clk 0:00:25.4]} 41... Qd8
{[%clk 0:00:23]} 42. Rc3 {[%clk 0:00:23.8]} 42... Qd7 {[%clk 0:00:21.7]} 43. Rc5
{[%clk 0:00:21.4]} 43... Qxh3 {[%clk 0:00:19.8]} 44. Qe5 {[%clk 0:00:21.4]}
44... Qg2+ {[%clk 0:00:20.6]} 45. Kd4 {[%clk 0:00:21.8]} 45... Qf2+ {[%clk
0:00:21.5]} 46. Kc4 {[%clk 0:00:21.6]} 46... Qc2+ {[%clk 0:00:22.5]} 47. Kb4
{[%clk 0:00:22.4]} 47... Rb6+ {[%clk 0:00:23.6]} 48. Rb5 {[%clk 0:00:17.3]}
48... axb5 {[%clk 0:00:24.8]} 49. Qe8+ {[%clk 0:00:18.5]} 49... Kg7 {[%clk
0:00:26.1]} 50. Qe5+ {[%clk 0:00:19.3]} 50... Kh7 {[%clk 0:00:27.3]} 51. axb5
{[%clk 0:00:20.8]} 51... Qc8 {[%clk 0:00:26.1]} 52. Qe7 {[%clk 0:00:20.7]} 52...
Kg8 {[%clk 0:00:25.1]} 53. d6 {[%clk 0:00:20.9]} 53... Qc6 {[%clk 0:00:20]} 54.
Qe5 {[%clk 0:00:15.5]} 54... Qxd6+ {[%clk 0:00:20.3]} 55. Qxd6 {[%clk
0:00:16.1]} 55... Rxd6 {[%clk 0:00:22.2]} 56. Kc5 {[%clk 0:00:18]} 56... Re6
{[%clk 0:00:23.6]} 57. Kd5 {[%clk 0:00:18.5]} 57... Kf8 {[%clk 0:00:24.9]} 0-1

[Event "*** Titled Tuesday Blitz"]
[Site "Chess.com"]
[Date "2018.12.04"]
[Round "4"]
[White "tteshan"]
[Black "aquaticpineapples"]
[Result "1-0"]
[WhiteElo "2124"]
[BlackElo "2036"]
[TimeControl "180+2"]
[EndTime "13:51:21 PST"]
[Termination "tteshan won by checkmate"]

1. e4 {[%clk 0:03:01.9]} 1... e6 {[%clk 0:02:59]} 2. d4 {[%clk 0:03:01.7]} 2...
d5 {[%clk 0:02:59.9]} 3. Nc3 {[%clk 0:03:02.7]} 3... Bb4 {[%clk 0:03:00.6]} 4.
e5 {[%clk 0:03:02.8]} 4... c5 {[%clk 0:03:01.4]} 5. dxc5 {[%clk 0:02:58.4]} 5...
Nc6 {[%clk 0:02:57]} 6. Bd2 {[%clk 0:02:49.3]} 6... Nxe5 {[%clk 0:02:49.7]} 7.
Ne4 {[%clk 0:02:37.3]} 7... Bxd2+ {[%clk 0:02:36.7]} 8. Nxd2 {[%clk 0:02:36.6]}
8... Qa5 {[%clk 0:02:24.6]} 9. Qe2 {[%clk 0:02:28.9]} 9... Nc4 {[%clk
0:02:16.7]} 10. c3 {[%clk 0:02:18.8]} 10... Nxb2 {[%clk 0:01:58.7]} 11. Qb5+
{[%clk 0:02:10.5]} 11... Qxb5 {[%clk 0:01:58.1]} 12. Bxb5+ {[%clk 0:02:12]}
12... Bd7 {[%clk 0:01:55]} 13. Bxd7+ {[%clk 0:02:01.3]} 13... Kxd7 {[%clk
0:01:56.9]} 14. Ke2 {[%clk 0:02:01.4]} 14... Na4 {[%clk 0:01:50.3]} 15. Ngf3
{[%clk 0:01:51.4]} 15... Nxc3+ {[%clk 0:01:43.8]} 16. Kd3 {[%clk 0:01:52.3]}
16... Na4 {[%clk 0:01:44.6]} 17. Ne5+ {[%clk 0:01:47.7]} 17... Ke7 {[%clk
0:01:44.4]} 18. Nb3 {[%clk 0:01:38.9]} 18... f6 {[%clk 0:01:36.5]} 19. Nf3
{[%clk 0:01:35.6]} 19... Nh6 {[%clk 0:01:34]} 20. Rac1 {[%clk 0:01:34.4]} 20...
Rac8 {[%clk 0:01:28.3]} 21. Rhe1 {[%clk 0:01:29.7]} 21... Ng4 {[%clk 0:01:11.8]}
22. Re2 {[%clk 0:01:18.9]} 22... Rhe8 {[%clk 0:01:08.8]} 23. Nfd4 {[%clk
0:01:17.8]} 23... Ne5+ {[%clk 0:01:06.8]} 24. Kd2 {[%clk 0:01:13.1]} 24... Kf7
{[%clk 0:01:02.6]} 25. Kd1 {[%clk 0:00:50.7]} 25... Nc4 {[%clk 0:00:52]} 26. Nb5
{[%clk 0:00:46.9]} 26... a6 {[%clk 0:00:32.7]} 27. N5d4 {[%clk 0:00:19.8]} 27...
Nxc5 {[%clk 0:00:28.8]} 28. Nxc5 {[%clk 0:00:20]} 28... Rxc5 {[%clk 0:00:30.7]}
29. f4 {[%clk 0:00:17.7]} 29... Rec8 {[%clk 0:00:27.6]} 30. Rb1 {[%clk 0:00:18]}
30... R5c7 {[%clk 0:00:15.4]} 31. Nxe6 {[%clk 0:00:17.6]} 31... Re7 {[%clk
0:00:15.9]} 32. Nd4 {[%clk 0:00:18.3]} 32... Rxe2 {[%clk 0:00:16.5]} 33. Kxe2
{[%clk 0:00:19.8]} 33... Rc7 {[%clk 0:00:17.4]} 34. g4 {[%clk 0:00:18.8]} 34...
Nd6 {[%clk 0:00:17.2]} 35. Kf3 {[%clk 0:00:19.1]} 35... Rc3+ {[%clk 0:00:16.5]}
36. Kf2 {[%clk 0:00:20.4]} 36... Rd3 {[%clk 0:00:17.4]} 37. Nf3 {[%clk
0:00:19.3]} 37... f5 {[%clk 0:00:16.6]} 38. Ne5+ {[%clk 0:00:19.3]} 38... Ke6
{[%clk 0:00:16.1]} 39. Nxd3 {[%clk 0:00:20.8]} 39... Ne4+ {[%clk 0:00:16.8]} 40.
Ke3 {[%clk 0:00:21.5]} 40... fxg4 {[%clk 0:00:17.3]} 41. Rxb7 {[%clk 0:00:21.7]}
41... Nc3 {[%clk 0:00:18.2]} 42. Rb6+ {[%clk 0:00:22.8]} 42... Kf5 {[%clk
0:00:18.9]} 43. Rxa6 {[%clk 0:00:24.2]} 43... Nd1+ {[%clk 0:00:19]} 44. Kd2
{[%clk 0:00:24.7]} 44... Ke4 {[%clk 0:00:18.4]} 45. Nc5+ {[%clk 0:00:24.2]}
45... Kd4 {[%clk 0:00:19.4]} 46. Ne6+ {[%clk 0:00:25.5]} 46... Ke4 {[%clk
0:00:20]} 47. Kxd1 {[%clk 0:00:26.9]} 47... Kf3 {[%clk 0:00:21.2]} 48. a4 {[%clk
0:00:26.7]} 48... Kg2 {[%clk 0:00:22.4]} 49. Ng5 {[%clk 0:00:27]} 49... Kxh2
{[%clk 0:00:23.1]} 50. Nxh7 {[%clk 0:00:28.2]} 50... g3 {[%clk 0:00:24.4]} 51.
Rg6 {[%clk 0:00:28.2]} 51... g2 {[%clk 0:00:25.3]} 52. a5 {[%clk 0:00:28.6]}
52... g1=Q+ {[%clk 0:00:25.6]} 53. Rxg1 {[%clk 0:00:30.1]} 53... Kxg1 {[%clk
0:00:27.5]} 54. a6 {[%clk 0:00:31.1]} 54... Kf2 {[%clk 0:00:28.5]} 55. a7 {[%clk
0:00:32.6]} 55... Ke3 {[%clk 0:00:29.8]} 56. a8=Q {[%clk 0:00:33.8]} 56... Kxf4
{[%clk 0:00:31.1]} 57. Qxd5 {[%clk 0:00:34.8]} 57... Kg4 {[%clk 0:00:32.3]} 58.
Qf7 {[%clk 0:00:35.4]} 58... g5 {[%clk 0:00:32.6]} 59. Qf6 {[%clk 0:00:36.6]}
59... Kg3 {[%clk 0:00:32.3]} 60. Nxg5 {[%clk 0:00:36.4]} 60... Kh4 {[%clk
0:00:32.4]} 61. Ke2 {[%clk 0:00:37]} 61... Kg4 {[%clk 0:00:33.4]} 62. Ne4 {[%clk
0:00:37.1]} 62... Kh3 {[%clk 0:00:32.9]} 63. Qg5 {[%clk 0:00:37.5]} 63... Kh2
{[%clk 0:00:34]} 64. Qg3+ {[%clk 0:00:38.8]} 64... Kh1 {[%clk 0:00:35.2]} 65.
Nf2# {[%clk 0:00:40.4]} 1-0